bitfinex/quotes_BTCUSD_20220306
["timestamp","ask_amount","ask_price","bid_price","bid_amount"]
[1646553686313,0.00022847,39403.0,39401.0,0.3]
[1646553686511,0.00022847,39403.0,39400.0,0.20672598]
[1646553687014,0.00022847,39403.0,39400.0,0.21272598]
[1646553687311,0.21296493,39410.0,39400.0,0.21272598]
[1646553687511,0.00022847,39403.0,39401.0,0.3]
[1646553687711,0.00022847,39403.0,39400.0,0.006]
[1646553688314,0.30022847,39403.0,39391.0,0.65]
[1646553688514,0.3,39403.0,39392.0,0.15]
[1646553688815,0.00022076,39403.0,39394.0,0.06790218]
[1646553689666,0.19736374,39404.0,39394.0,0.06790218]
[1646553689866,0.00022077,39400.0,39394.0,0.06790218]
[1646553690073,0.00022077,39400.0,39393.0,0.27288106]
[1646553690865,0.19736374,39404.0,39393.0,0.27288106]
[1646553691067,0.00022077,39398.0,39394.0,0.06098928]
[1646553691267,0.00022077,39398.0,39393.0,0.17288106]
[1646553691466,0.00022077,39398.0,39393.0,0.1636092]
[1646553691666,0.00022077,39398.0,39393.0,0.13824072]
[1646553692067,0.19736374,39404.0,39393.0,0.13824072]
[1646553692268,0.00022168,39397.0,39393.0,0.13824072]
[1646553693313,0.3,39407.0,39393.0,0.13824072]
[1646553693514,0.00022168,39397.0,39393.0,0.13824072]
[1646553694414,0.3,39407.0,39393.0,0.13824072]
[1646553694613,0.00022168,39397.0,39393.0,0.13824072]
[1646553695616,0.3,39407.0,39393.0,0.13824072]
[1646553695814,0.00022158,39397.0,39393.0,0.13824072]
[1646553696865,0.3,39407.0,39393.0,0.13824072]
[1646553697169,0.00022158,39397.0,39393.0,0.13824072]
[1646553698168,0.20613507,39403.0,39393.0,0.13824072]
[1646553698365,0.00022158,39397.0,39393.0,0.13824072]
[1646553698765,0.18572099,39403.0,39393.0,0.13824072]
[1646553700435,0.18572099,39403.0,39393.0,0.21139365]
[1646553700635,0.18572099,39403.0,39393.0,0.13824072]
[1646553700841,0.18572099,39403.0,39399.0,0.16398243]
[1646553703138,0.18595796,39403.0,39399.0,0.16398243]
[1646553704171,0.18572099,39403.0,39399.0,0.16398243]
[1646553704371,0.00023697,39403.0,39399.0,0.16398243]
[1646553705270,0.001,39408.0,39399.0,0.16398243]
[1646553705471,0.00023697,39403.0,39399.0,0.16398243]
[1646553706073,0.00023697,39403.0,39396.0,0.002]
[1646553706272,0.00023697,39403.0,39395.0,0.1163]
[1646553706472,0.17248751,39398.0,39395.0,0.1163]
[1646553706677,0.17248751,39398.0,39386.0,0.49609966]
[1646553706678,0.3,39397.0,39386.0,0.1862]
[1646553707074,0.382205,39396.0,39391.0,0.003]
[1646553707278,0.382205,39394.0,39391.0,0.003]
[1646553707478,0.382205,39392.0,39391.0,0.003]
[1646553707675,0.47310234,39392.0,39391.0,0.003]
[1646553707935,0.17310234,39392.0,39391.0,0.003]
[1646553708233,0.55530734,39392.0,39386.0,0.16031982]
[1646553708437,0.3,39391.0,39383.0,0.00023707]
[1646553708636,0.02538,39389.0,39383.0,0.00023707]
[1646553708834,0.382205,39388.0,39374.0,0.07031131]
[1646553709034,0.15,39397.0,39383.0,0.00023705]
[1646553709035,0.3,39387.0,39383.0,0.00023705]
[1646553709233,0.382205,39386.0,39383.0,0.00023705]
[1646553709434,0.382205,39387.0,39383.0,0.00023705]
[1646553709634,0.3,39385.0,39383.0,0.00023705]
[1646553709835,0.18159547,39388.0,39383.0,0.00023705]
[1646553710036,0.18159547,39388.0,39382.0,0.16375276]
[1646553710037,0.3,39387.0,39382.0,0.16375276]
[1646553710235,0.3,39387.0,39382.0,0.16398981]
[1646553711239,0.3,39387.0,39382.0,0.16375276]
[1646553711436,0.3,39387.0,39383.0,0.00023705]
[1646553712467,0.3,39387.0,39382.0,0.16375276]
[1646553712668,0.3,39387.0,39383.0,0.00023705]
[1646553713673,0.3,39387.0,39382.0,0.16375276]
[1646553713869,0.3,39387.0,39383.0,0.00023705]
[1646553714069,0.18159547,39388.0,39383.0,0.00023705]
[1646553714674,0.00090645,39386.0,39383.0,0.00023705]
[1646553714873,0.00090645,39386.0,39382.0,0.16375276]
[1646553715073,0.00090645,39386.0,39383.0,0.0002288]
[1646553715523,0.00090645,39386.0,39384.0,0.05364896]
[1646553715722,0.00090645,39386.0,39383.0,0.0002288]
[1646553716029,0.00090645,39386.0,39382.0,0.16375276]
[1646553716226,0.00090645,39386.0,39383.0,0.0002288]
[1646553717223,0.00090645,39386.0,39380.0,0.19354755]
[1646553717424,0.00090645,39386.0,39383.0,0.0002288]
[1646553718526,0.00090645,39386.0,39380.0,0.19354755]
[1646553718730,0.00090645,39386.0,39383.0,0.00022117]
[1646553719769,0.00090645,39386.0,39380.0,0.19354755]
[1646553719970,0.00090645,39386.0,39383.0,0.00022117]
[1646553720770,0.00078913,39386.0,39383.0,0.00022117]
[1646553720971,0.00078913,39386.0,39380.0,0.19354755]
[1646553721170,0.00078913,39386.0,39383.0,0.00022117]
[1646553722172,0.00078913,39386.0,39382.0,0.003]
[1646553722372,0.00078913,39386.0,39383.0,0.00022168]
[1646553723223,0.00078913,39386.0,39380.0,0.19354755]
[1646553723422,0.00078913,39386.0,39383.0,0.00022168]
[1646553724424,0.00078913,39386.0,39380.0,0.38221712]
[1646553724825,0.00078913,39386.0,39383.0,0.00022168]
[1646553725627,0.00078913,39386.0,39381.0,0.3]
[1646553725828,0.00078913,39386.0,39384.0,0.06754902]
[1646553726228,0.00078913,39386.0,39383.0,0.00022163]
[1646553726870,0.00078913,39386.0,39380.0,0.19354755]
[1646553727070,0.00078913,39386.0,39383.0,0.00022163]
[1646553728068,0.00078913,39386.0,39380.0,0.19354755]
[1646553728270,0.00078913,39386.0,39383.0,0.00022163]
[1646553728869,0.00030028,39381.0,39380.0,0.19354755]
[1646553729670,0.00030028,39381.0,39380.0,0.25259254]
[1646553730522,0.00030028,39381.0,39380.0,0.42828156]
[1646553731721,0.00030028,39381.0,39380.0,0.25259254]
[1646553733623,0.00030028,39381.0,39380.0,0.19354755]
[1646553733823,0.00124139,39381.0,39380.0,0.19354755]
[1646553734872,0.00124139,39381.0,39380.0,0.25685418]
[1646553735073,0.00124139,39381.0,39380.0,0.42043059]
[1646553735272,0.00124139,39381.0,39380.0,0.25685418]
[1646553745083,0.00124139,39381.0,39380.0,0.56603263]
[1646553745328,0.00088962,39382.0,39380.0,1.34805491]
[1646553745329,3.101e-05,39382.0,39380.0,1.34805491]
[1646553745527,0.00022163,39388.0,39382.0,0.79998]
[1646553745726,0.00022163,39388.0,39384.0,0.02538]
[1646553745924,0.00022163,39388.0,39387.0,0.1629682]
[1646553746125,0.3,39399.0,39387.0,0.15971213]
[1646553746325,0.3,39399.0,39395.0,0.16347375]
[1646553746525,0.3,39399.0,39383.0,0.3683]
[1646553746526,0.3,39399.0,39389.0,0.07443533]
[1646553746726,0.50776588,39399.0,39385.0,0.1]
[1646553746926,0.20776588,39398.0,39385.0,0.1]
[1646553747127,0.3,39397.0,39385.0,0.1]
[1646553747626,0.00010354,39393.0,39388.0,0.19837387]
[1646553748530,0.160131,39392.0,39384.0,0.1925]
[1646553748729,0.3,39391.0,39381.0,0.19993725]
[1646553749174,0.3,39391.0,39381.0,0.45892708]
[1646553749374,0.3,39391.0,39381.0,0.53250293]
[1646553749571,0.3,39391.0,39383.0,0.19166081]
[1646553750173,0.0002372,39388.0,39383.0,0.19166081]
[1646553750973,0.3,39391.0,39383.0,0.19166081]
[1646553751173,0.0002372,39388.0,39383.0,0.19166081]
[1646553752174,0.20776588,39392.0,39383.0,0.19166081]
[1646553752374,0.0002372,39388.0,39383.0,0.19166081]
[1646553753018,0.0002372,39388.0,39383.0,0.45065064]
[1646553753224,0.0002372,39388.0,39385.0,0.20760532]
[1646553753421,0.50776588,39393.0,39385.0,0.26328028]
[1646553753622,0.50776588,39393.0,39389.0,0.17476178]
[1646553754322,0.20923281,39392.0,39389.0,0.17476178]
[1646553756123,0.20946501,39392.0,39389.0,0.17476178]
[1646553756581,0.3,39391.0,39385.0,0.20760532]
[1646553756978,0.3,39391.0,39384.0,0.20760532]
[1646553757178,0.00022143,39390.0,39384.0,0.20960532]
[1646553757579,0.00022143,39390.0,39385.0,0.20760532]
[1646553757977,0.00022143,39390.0,39384.0,0.20960532]
[1646553758178,0.50776588,39391.0,39384.0,0.20960532]
[1646553758381,0.50776588,39391.0,39382.0,0.1181]
[1646553758382,0.00022143,39389.0,39382.0,0.1181]
[1646553758582,0.30022143,39389.0,39381.0,0.19992148]
[1646553758783,0.15165562,39385.0,39381.0,0.19992148]
[1646553758983,0.15165562,39385.0,39381.0,0.00022148]
[1646553759482,0.0004894,39380.0,39379.0,0.25898983]
[1646553759683,0.0004894,39380.0,39378.0,0.44151243]
[1646553759881,0.0004894,39380.0,39378.0,0.1825226]
[1646553760529,0.0004894,39380.0,39378.0,0.44151243]
[1646553761230,0.0004894,39380.0,39378.0,0.1825226]
[1646553762228,0.0004894,39380.0,39378.0,0.44151243]
[1646553762930,0.0004894,39380.0,39379.0,0.32439927]
[1646553765171,0.0004894,39380.0,39379.0,0.25898983]
[1646553765371,0.0004894,39380.0,39378.0,0.44151243]
[1646553765573,0.0004894,39380.0,39378.0,0.44173378]
[1646553766271,0.0004894,39380.0,39378.0,0.18274395]
[1646553766471,0.0004894,39380.0,39379.0,0.06945565]
[1646553767475,0.0004894,39380.0,39379.0,0.32844548]
[1646553767673,0.00040474,39380.0,39379.0,0.62844548]
[1646553767917,0.00040474,39380.0,39379.0,0.55898983]
[1646553768125,0.00040474,39380.0,39378.0,0.38056741]
[1646553768319,0.00040474,39380.0,39378.0,0.18274395]
[1646553769019,0.00040474,39380.0,39378.0,0.1825226]
[1646553770521,0.00040474,39380.0,39379.0,0.06172289]
[1646553773073,0.00040474,39380.0,39378.0,0.18674395]
[1646553773875,0.00040474,39380.0,39378.0,0.1865226]
[1646553774575,0.00040474,39380.0,39378.0,0.1825226]
[1646553774775,0.00040474,39380.0,39378.0,0.18245882]
[1646553789574,0.00040474,39380.0,39376.0,0.50598332]
[1646553789575,0.26546457,39377.0,39376.0,0.50598332]
[1646553790721,0.26546457,39377.0,39376.0,0.20598332]
[1646553790923,0.26546457,39377.0,39376.0,0.50598332]
[1646553791124,0.26546457,39377.0,39376.0,0.20598332]
[1646553793922,0.26110957,39377.0,39376.0,0.20598332]
[1646553797477,0.26110957,39377.0,39375.0,0.00022183]
[1646553797932,0.26110957,39377.0,39375.0,0.00011846]
[1646553797933,0.27796582,39376.0,39375.0,0.00011846]
[1646553798134,0.26110957,39377.0,39375.0,0.00011846]
[1646553798529,0.16104509,39376.0,39375.0,0.00011846]
[1646553799130,0.16104509,39376.0,39374.0,0.0002218]
[1646553800130,0.16104509,39376.0,39373.0,0.00099327]
[1646553800329,0.16104509,39376.0,39373.0,0.00122249]
[1646553801333,0.16104509,39376.0,39373.0,0.00099327]
[1646553801568,0.16104509,39376.0,39373.0,0.00122249]
[1646553802570,0.16104509,39376.0,39373.0,0.00099327]
[1646553802769,0.16104509,39376.0,39373.0,0.00122249]
[1646553803171,0.26110957,39377.0,39373.0,0.00122249]
[1646553803771,0.26110957,39377.0,39373.0,0.00099327]
[1646553803971,0.26110957,39377.0,39373.0,0.00121457]
[1646553804373,0.20966286,39376.0,39373.0,0.00121457]
[1646553804972,0.20966286,39376.0,39373.0,0.00099327]
[1646553805171,0.20966286,39376.0,39373.0,0.00121457]
[1646553806224,0.20966286,39376.0,39373.0,0.00099327]
[1646553806422,0.20966286,39376.0,39373.0,0.00121457]
[1646553807229,0.26110957,39377.0,39373.0,0.00121457]
[1646553807425,0.26110957,39377.0,39373.0,0.00099327]
[1646553807624,0.26110957,39377.0,39373.0,0.00121512]
[1646553808226,0.20876942,39375.0,39373.0,0.00121512]
[1646553808626,0.20876942,39375.0,39373.0,0.00099327]
[1646553809877,0.3,39374.0,39373.0,0.00099327]
[1646553810773,0.20876942,39375.0,39373.0,0.00099327]
[1646553811577,0.3,39376.0,39373.0,0.00099327]
[1646553811975,0.26210957,39377.0,39373.0,0.00099327]
[1646553812377,0.26210957,39377.0,39373.0,0.00121507]
[1646553812575,0.4296931,39377.0,39373.0,0.00121507]
[1646553812835,0.26110957,39377.0,39373.0,0.00121507]
[1646553813437,0.26110957,39377.0,39373.0,0.00099327]
[1646553813739,0.47444123,39377.0,39373.0,0.00121507]
[1646553814437,0.3,39376.0,39373.0,0.00121507]
[1646553814637,0.26110957,39377.0,39373.0,0.00099327]
[1646553814940,0.26110957,39377.0,39373.0,0.00121507]
[1646553815638,0.3,39376.0,39373.0,0.00121507]
[1646553815837,0.19880957,39375.0,39373.0,0.00099327]
[1646553816038,0.3,39376.0,39373.0,0.00121507]
[1646553816237,0.26110957,39377.0,39373.0,0.00121507]
[1646553817075,0.26110957,39377.0,39373.0,0.00099327]
[1646553817276,0.26110957,39377.0,39373.0,0.00121507]
[1646553818278,0.26110957,39377.0,39373.0,0.00099327]
[1646553818479,0.26110957,39377.0,39373.0,0.00121507]
[1646553818679,0.56110957,39377.0,39373.0,0.00121507]
[1646553819479,0.56110957,39377.0,39369.0,0.04]
[1646553819480,0.95,39376.0,39369.0,0.03603613]
[1646553819680,0.3,39375.0,39373.0,0.0002218]
[1646553819879,0.95,39376.0,39373.0,0.0002218]
[1646553820527,1.25,39376.0,39373.0,0.0002218]
[1646553820729,0.3,39376.0,39369.0,0.03603613]
[1646553820929,0.3,39376.0,39373.0,0.0002218]
[1646553821127,0.56110957,39377.0,39373.0,0.0002218]
[1646553821527,0.02538,39376.0,39373.0,0.0002218]
[1646553821927,0.02538,39376.0,39369.0,0.03603613]
[1646553822134,0.17538,39374.0,39373.0,1.8e-06]
[1646553822330,0.857585,39374.0,39373.0,1.8e-06]
[1646553822736,0.02538,39370.0,39369.0,0.03603613]
[1646553822931,0.707585,39370.0,39369.0,0.03603613]
[1646553823533,0.70691118,39370.0,39369.0,0.03603613]
[1646553823732,0.91608451,39370.0,39369.0,0.03603613]
[1646553824773,1.06608451,39370.0,39369.0,0.03603613]
[1646553824973,0.91608451,39370.0,39369.0,0.03603613]
[1646553836024,0.70691118,39370.0,39369.0,0.03603613]
[1646553836225,0.0050582,39372.0,39369.0,0.03603613]
[1646553837223,5.82e-05,39372.0,39369.0,0.03603613]
[1646553837625,5.82e-05,39372.0,39369.0,0.03625794]
[1646553838723,5.82e-05,39372.0,39369.0,0.03603613]
[1646553838925,5.82e-05,39372.0,39369.0,0.03625795]
[1646553839794,5.82e-05,39372.0,39369.0,0.03603613]
[1646553839993,5.82e-05,39372.0,39369.0,0.03625795]
[1646553840597,5.82e-05,39372.0,39369.0,0.09689872]
[1646553841002,5.82e-05,39372.0,39369.0,0.0966769]
[1646553841199,5.82e-05,39372.0,39369.0,0.09689872]
[1646553841398,5.82e-05,39372.0,39369.0,0.03625795]
[1646553842198,5.82e-05,39372.0,39369.0,0.03603613]
[1646553842497,5.82e-05,39372.0,39369.0,0.03625795]
[1646553842696,5.82e-05,39372.0,39369.0,0.0949231]
[1646553843127,5.82e-05,39372.0,39369.0,0.03625795]
[1646553843531,5.82e-05,39372.0,39369.0,0.03603613]
[1646553843728,5.82e-05,39372.0,39369.0,0.03625795]
[1646553845831,0.26110957,39377.0,39372.0,1.492e-05]
[1646553848578,0.26110957,39377.0,39374.0,0.21218734]
[1646553849575,0.85,39376.0,39372.0,0.17276583]
[1646553850529,0.20395257,39375.0,39372.0,0.17276583]
[1646553850729,0.85,39376.0,39372.0,0.17276583]
[1646553851137,0.26110957,39377.0,39372.0,0.17276583]
[1646553851729,0.44543735,39377.0,39372.0,0.17276583]
[1646553852131,0.26110957,39377.0,39372.0,0.17276583]
[1646553853132,0.42964378,39377.0,39372.0,0.17276583]
[1646553853932,0.26110957,39377.0,39372.0,0.17276583]
[1646553854581,0.3,39376.0,39372.0,0.17276583]
[1646553854981,0.20074048,39375.0,39372.0,0.17276583]
[1646553855182,0.3,39378.0,39372.0,0.17276583]
[1646553855381,0.382205,39377.0,39372.0,0.17276583]
[1646553855582,0.3,39376.0,39372.0,0.17276583]
[1646553855782,0.3,39378.0,39372.0,0.17276583]
[1646553856183,0.17675987,39377.0,39372.0,0.17276583]
[1646553856781,0.3,39378.0,39372.0,0.17276583]
[1646553858030,0.20865279,39377.0,39372.0,0.17276583]
[1646553858936,0.3,39378.0,39372.0,0.17276583]
[1646553859632,0.3,39378.0,39372.0,0.16776583]
[1646553860034,0.20717927,39377.0,39372.0,0.16776583]
[1646553861679,0.3,39378.0,39372.0,0.16776583]
[1646553861876,0.3,39378.0,39372.0,0.16769358]
[1646553862176,0.3,39378.0,39369.0,0.03803613]
[1646553862775,0.3,39378.0,39369.0,0.03603613]
[1646553863981,0.3,39378.0,39371.0,0.00023705]
[1646553864576,0.15236816,39376.0,39371.0,0.00023705]
[1646553864776,0.3,39375.0,39371.0,0.00023705]
[1646553864978,0.15236816,39376.0,39369.0,0.03603613]
[1646553865327,0.15236816,39376.0,39371.0,0.00023705]
[1646553866129,0.3,39377.0,39371.0,0.00023705]
[1646553866330,0.3,39377.0,39369.0,0.03603613]
[1646553866531,1.0,39376.0,39369.0,0.03127318]
[1646553866728,0.3,39377.0,39369.0,0.03127318]
[1646553867432,0.45713878,39377.0,39369.0,0.18827071]
[1646553867634,0.45713878,39377.0,39369.0,0.03127318]
[1646553868033,0.66518023,39377.0,39369.0,0.03127318]
[1646553868933,0.66518023,39377.0,39369.0,0.03139798]
[1646553869182,0.50804145,39377.0,39369.0,0.03139798]
[1646553869996,0.70337891,39377.0,39369.0,0.18810504]
[1646553870180,0.50804145,39377.0,39369.0,0.03127318]
[1646553870480,0.3,39377.0,39369.0,0.03127318]
[1646553870880,0.50804145,39377.0,39369.0,0.03127318]
[1646553871082,0.20804145,39377.0,39369.0,0.03127318]
[1646553871283,0.49835631,39376.0,39369.0,0.03127318]
[1646553871484,0.3,39376.0,39369.0,0.03127318]
[1646553871787,0.20804145,39377.0,39369.0,0.03127318]
[1646553871983,0.3,39376.0,39369.0,0.02627318]
[1646553872484,0.3,39376.0,39369.0,0.02651005]
[1646553872685,0.20804145,39377.0,39369.0,0.02651005]
[1646553872946,0.20804145,39377.0,39370.0,0.16304725]
[1646553873744,0.3,39378.0,39370.0,0.16304725]
[1646553873745,0.28550042,39378.0,39370.0,0.16304725]
[1646553874143,0.45160244,39378.0,39369.0,0.02651005]
[1646553874545,0.45160244,39378.0,39369.0,0.02627318]
[1646553874746,0.28550042,39378.0,39369.0,0.02627318]
[1646553874946,0.28550042,39378.0,39369.0,0.02651005]
[1646553875648,0.45209545,39378.0,39369.0,0.24082592]
[1646553875848,0.45209545,39378.0,39369.0,0.24058905]
[1646553876048,0.28550042,39378.0,39369.0,0.24082592]
[1646553877084,0.54555223,39378.0,39369.0,0.24058905]
[1646553877283,0.28550042,39378.0,39374.0,0.17681353]
[1646553877484,0.26005181,39379.0,39374.0,0.17681353]
[1646553878283,0.46748673,39379.0,39374.0,0.17681353]
[1646553878583,0.382205,39379.0,39374.0,0.17681353]
[1646553878782,0.26005181,39380.0,39374.0,0.17681353]
[1646553879388,0.26005181,39379.0,39374.0,0.17681353]
[1646553879584,0.26005181,39379.0,39374.0,0.20145096]
[1646553879984,0.26005181,39379.0,39369.0,0.00022793]
[1646553880186,0.3,39378.0,39369.0,0.00022793]
[1646553880433,0.56005181,39378.0,39369.0,0.00022793]
[1646553880635,0.26005181,39377.0,39368.0,0.0011]
[1646553880833,0.3,39376.0,39369.0,0.00011758]
[1646553881036,0.15748048,39375.0,39369.0,0.00011758]
[1646553881433,0.56005181,39376.0,39369.0,0.00011758]
[1646553881634,0.26005181,39376.0,39369.0,0.00011758]
[1646553882139,0.26205181,39377.0,39369.0,0.25979994]
[1646553882538,0.26205181,39377.0,39374.0,0.18312498]
[1646553882937,0.26005181,39377.0,39374.0,0.18312498]
[1646553883737,0.20827154,39375.0,39374.0,0.18312498]
[1646553884379,0.20827154,39375.0,39371.0,0.20824727]
[1646553884581,0.20827154,39375.0,39369.0,0.25979994]
[1646553884582,0.18969423,39372.0,39370.0,0.20824727]
[1646553884978,0.3,39372.0,39370.0,0.20824727]
[1646553885179,0.20827154,39373.0,39369.0,0.20836485]
[1646553885381,2.67783948,39372.0,39369.0,0.20836485]
[1646553885580,2.67783948,39372.0,39369.0,0.20824727]
[1646553885978,2.88358105,39372.0,39369.0,0.20824727]
[1646553886179,2.49493018,39372.0,39369.0,0.20824727]
[1646553886378,0.20827154,39373.0,39369.0,0.20824727]
[1646553886579,0.20827154,39373.0,39370.0,0.20824727]
[1646553887679,0.20827154,39372.0,39370.0,0.21142972]
[1646553888129,0.20827154,39371.0,39370.0,0.21142972]
[1646553888828,0.20827154,39372.0,39370.0,0.21142972]
[1646553889228,0.20827154,39373.0,39370.0,0.21142972]
[1646553889835,0.20827154,39375.0,39371.0,0.20824727]
[1646553890037,0.20827154,39375.0,39372.0,0.20824727]
[1646553890430,0.20827154,39376.0,39372.0,0.20824727]
[1646553890630,0.20827154,39375.0,39371.0,0.20824727]
[1646553892479,0.20827154,39375.0,39372.0,0.20824727]
[1646553895930,0.20827154,39376.0,39372.0,0.20824727]
[1646553896735,0.001,39381.0,39373.0,0.20824727]
[1646553896736,0.20827154,39377.0,39373.0,0.20824727]
[1646553896933,0.26005181,39379.0,39374.0,0.25914727]
[1646553896934,0.20827154,39379.0,39374.0,0.25914727]
[1646553897134,0.20827154,39379.0,39375.0,0.20824727]
[1646553897336,0.20827154,39380.0,39375.0,0.20824727]
[1646553897533,0.20827154,39380.0,39378.0,0.16408537]
[1646553897735,0.20827154,39381.0,39378.0,0.16408537]
[1646553899382,0.20849235,39382.0,39378.0,0.16408537]
[1646553899588,0.20827154,39381.0,39378.0,0.16408537]
[1646553900186,0.20827154,39381.0,39376.0,0.06648565]
[1646553900587,0.20827154,39381.0,39376.0,0.06642272]
[1646553901184,0.1717229,39379.0,39375.0,0.20824727]
[1646553901389,0.1717229,39379.0,39373.0,0.20824727]
[1646553901586,0.3,39378.0,39373.0,0.20824727]
[1646553901785,0.3,39378.0,39371.0,0.26368236]
[1646553901786,0.3,39378.0,39374.0,0.20824727]
[1646553901985,0.67999444,39379.0,39373.0,0.20824727]
[1646553902183,0.67999444,39379.0,39372.0,0.20824727]
[1646553902384,0.67999444,39379.0,39372.0,0.38859086]
[1646553902586,2.02751322,39378.0,39372.0,0.38859086]
[1646553902831,2.02751322,39378.0,39372.0,0.38359086]
[1646553903433,2.02751322,39378.0,39372.0,0.20324727]
[1646553903633,0.3,39377.0,39372.0,0.20324727]
[1646553903838,0.3,39377.0,39371.0,0.005]
[1646553904736,0.37141417,39373.0,39371.0,0.005]
[1646553904936,0.21926565,39373.0,39370.0,0.05657741]
[1646553905136,0.3,39377.0,39370.0,0.05657741]
[1646553905538,0.3,39379.0,39370.0,0.05657741]
[1646553905936,0.2030519,39377.0,39370.0,0.05657741]
[1646553906141,0.3,39379.0,39370.0,0.05657741]
[1646553906337,0.3,39379.0,39372.0,0.2034928]
[1646553907181,0.20570321,39376.0,39372.0,0.2034928]
[1646553907381,0.3,39379.0,39372.0,0.2034928]
[1646553907582,0.44287001,39380.0,39372.0,0.2034928]
[1646553907583,0.1828182,39380.0,39372.0,0.2034928]
[1646553907781,0.3,39379.0,39372.0,0.2034928]
[1646553908180,0.1828182,39380.0,39372.0,0.2034928]
[1646553908384,0.20637908,39379.0,39372.0,0.2034928]
[1646553908582,0.1828182,39380.0,39377.0,0.06090586]
[1646553908783,0.3,39381.0,39372.0,0.2034928]
[1646553909782,0.5177643,39381.0,39372.0,0.2034928]
[1646553910938,0.18083758,39379.0,39376.0,0.05407879]
[1646553911133,0.3,39378.0,39372.0,0.17117118]
[1646553912332,0.18083758,39379.0,39372.0,0.22770922]
[1646553912733,0.3,39378.0,39372.0,0.22770922]
[1646553912935,0.3890326,39379.0,39372.0,0.43577786]
[1646553913235,0.3,39378.0,39372.0,0.43577786]
[1646553913437,0.3890326,39379.0,39372.0,0.22770922]
[1646553913635,0.50819502,39378.0,39372.0,0.17117118]
[1646553914084,0.20819502,39378.0,39372.0,0.17117118]
[1646553915086,0.20819502,39378.0,39372.0,0.24507669]
[1646553915285,0.50819502,39378.0,39372.0,0.24507669]
[1646553915484,0.20819502,39378.0,39372.0,0.24507669]
[1646553915685,0.50819502,39378.0,39372.0,0.24507669]
[1646553916086,0.20819502,39378.0,39372.0,0.24507669]
[1646553916286,0.3890326,39379.0,39372.0,0.45314533]
[1646553916485,0.20819502,39379.0,39372.0,0.45314533]
[1646553917383,0.1873215,39378.0,39372.0,0.45314533]
[1646553919139,0.20819502,39379.0,39372.0,0.45314533]
[1646553920041,0.48607742,39378.0,39372.0,0.45314533]
[1646553920439,0.69427244,39378.0,39372.0,0.24007669]
[1646553920638,0.69427244,39378.0,39372.0,0.16617118]
[1646553921244,0.20819502,39377.0,39371.0,0.20806864]
[1646553921443,0.3,39376.0,39370.0,0.20806864]
[1646553923084,0.19548036,39374.0,39370.0,0.20806864]
[1646553926638,0.50819502,39376.0,39370.0,0.20806864]
[1646553926639,0.20819502,39376.0,39370.0,0.20806864]
[1646553927038,0.20819502,39377.0,39370.0,0.20806864]
[1646553928445,0.20819502,39377.0,39370.0,0.19306864]
[1646553930286,0.37725583,39378.0,39370.0,0.19306864]
[1646553930687,0.63730764,39378.0,39370.0,0.19306864]
[1646553931287,0.15480373,39372.0,39370.0,0.19306864]
[1646553932690,0.3,39371.0,39370.0,0.19306864]
[1646553932947,0.88305339,39371.0,39370.0,0.19306864]
[1646553933143,0.382205,39370.0,39369.0,0.00022075]
[1646553933340,0.682205,39370.0,39369.0,0.00022075]
[1646553933539,0.682205,39370.0,39368.0,0.0011]
[1646553933741,0.61095181,39371.0,39368.0,0.00132075]
[1646553933943,0.31095181,39371.0,39368.0,0.00132075]
[1646553934144,0.0509,39371.0,39368.0,0.00132075]
[1646553934746,0.0509,39371.0,39368.0,0.0011]
[1646553934948,0.0509,39371.0,39368.0,0.00132075]
[1646553935849,0.0509,39371.0,39365.0,0.26030311]
[1646553936048,0.0509,39371.0,39368.0,0.00022075]
[1646553936247,0.33142034,39372.0,39368.0,0.00022075]
[1646553937091,0.33142034,39372.0,39364.0,0.26078236]
[1646553938294,0.33142034,39372.0,39366.0,0.20819555]
[1646553938494,0.63142034,39372.0,39366.0,0.20819555]
[1646553940095,0.33142034,39372.0,39366.0,0.20819555]
[1646553940741,0.33142034,39372.0,39366.0,0.27432274]
[1646553940937,0.33142034,39372.0,39366.0,0.20843218]
[1646553941143,0.3,39371.0,39366.0,0.00023663]
[1646553941341,0.3,39371.0,39366.0,1.477e-05]
[1646553941939,0.3,39371.0,39365.0,0.002]
[1646553943041,0.3,39371.0,39364.0,0.20929584]
[1646553945695,0.3,39371.0,39365.0,0.20819584]
[1646553946691,0.3,39371.0,39364.0,0.20929584]
[1646553946891,0.3,39371.0,39364.0,0.20951555]
[1646553947936,0.3,39371.0,39364.0,0.0011]
[1646553948138,0.3,39371.0,39364.0,0.00131971]
[1646553948337,0.3,39371.0,39364.0,0.20951555]
[1646553948338,0.27463152,39371.0,39364.0,0.20951555]
[1646553949139,0.27463152,39371.0,39367.0,0.06435648]
[1646553949942,0.27463152,39371.0,39367.0,0.05935648]
[1646553950139,0.33142034,39372.0,39367.0,0.05935648]
[1646553950740,0.63142034,39372.0,39364.0,0.20951555]
[1646553950940,0.83963633,39372.0,39364.0,0.00131971]
[1646553951340,0.86501633,39372.0,39364.0,0.00131971]
[1646553951602,0.86501633,39372.0,39364.0,0.0011]
[1646553951804,2.40872593,39365.0,39364.0,0.00132085]
[1646553952104,0.53963633,39372.0,39364.0,0.00132085]
[1646553952304,0.3,39371.0,39364.0,0.00132085]
[1646553952705,0.3,39371.0,39364.0,0.0011]
[1646553952905,0.3,39371.0,39364.0,0.00132085]
[1646553954008,0.32538,39371.0,39364.0,0.0011]
[1646553954208,0.32538,39371.0,39364.0,0.00132085]
[1646553954408,0.3,39371.0,39364.0,0.00132085]
[1646553955208,0.3,39371.0,39364.0,0.00132077]
[1646553956238,0.3,39371.0,39364.0,0.0011]
[1646553956436,0.3,39371.0,39364.0,0.00132077]
[1646553957438,0.3,39371.0,39364.0,0.0011]
[1646553957643,0.3,39371.0,39364.0,0.00132077]
[1646553958640,0.3,39371.0,39364.0,0.0011]
[1646553958840,0.3,39371.0,39364.0,0.00132078]
[1646553959486,0.32538,39371.0,39364.0,0.00132078]
[1646553959887,0.53359599,39371.0,39364.0,0.0011]
[1646553960087,0.53359599,39371.0,39364.0,0.00132078]
[1646553960487,0.18315409,39366.0,39364.0,0.00132078]
[1646553961088,0.18315409,39366.0,39364.0,0.0011]
[1646553961487,0.18553804,39365.0,39364.0,0.0011]
[1646553961688,0.18315409,39366.0,39364.0,0.0011]
[1646553962689,0.15341391,39365.0,39364.0,0.0011]
[1646553962938,0.18315409,39366.0,39364.0,0.0011]
[1646553963637,0.001,39370.0,39364.0,0.0011]
[1646553964041,0.16194406,39369.0,39364.0,0.0011]
[1646553964837,0.17867569,39367.0,39364.0,0.00132077]
[1646553965840,0.17867569,39367.0,39364.0,0.0011]
[1646553966040,0.17867569,39367.0,39364.0,0.00132077]
[1646553967088,0.17867569,39367.0,39364.0,0.0011]